bitfinex/quotes_SOLUSD_20220306
["timestamp","ask_amount","ask_price","bid_price","bid_amount"]
[1646571645187,5.734,87.244,87.19,17.2101]
[1646571645188,1.55538458,87.221,87.19,17.2101]
[1646571645483,1.55538458,87.223,87.191,2.83613526]
[1646571645685,1.55538458,87.226,87.191,2.83613526]
[1646571645902,1.55538458,87.224,87.192,52.85467322]
[1646571646083,1.55538458,87.224,87.2,17.208]
[1646571646985,1.55538458,87.225,87.2,17.208]
[1646571647183,1.55538458,87.224,87.2,17.208]
[1646571647384,1.55538458,87.225,87.2,17.208]
[1646571648484,1.55538458,87.224,87.2,17.208]
[1646571649884,23.28958458,87.239,87.2,17.208]
[1646571650286,23.28958458,87.239,87.201,2.83613526]
[1646571650487,3.12204246,87.25,87.201,2.83613526]
[1646571650685,3.12204246,87.255,87.21,17.206]
[1646571650883,3.12204246,87.258,87.21,17.206]
[1646571651086,5.731,87.257,87.21,17.206]
[1646571651287,6.27246614,87.256,87.21,17.206]
[1646571651486,57.77168917,87.257,87.21,17.206]
[1646571651689,6.27246614,87.256,87.21,17.206]
[1646571652686,6.27246614,87.256,87.193,26.68563526]
[1646571652989,30.95416614,87.256,87.193,26.68563526]
[1646571653187,6.27246614,87.255,87.194,2.83613526]
[1646571653391,24.6817,87.256,87.194,2.83613526]
[1646571653988,6.27206255,87.255,87.194,2.83613526]
[1646571654888,6.27206255,87.255,87.195,23.76281452]
[1646571655089,6.27206255,87.255,87.2,17.2082]
[1646571655491,5.732,87.254,87.2,17.2082]
[1646571656090,6.27197784,87.253,87.201,2.83613526]
[1646571656289,5.732,87.252,87.201,2.83613526]
[1646571656588,5.732,87.253,87.201,2.83613526]
[1646571656789,5.732,87.255,87.201,2.83613526]
[1646571656988,6.27198423,87.252,87.201,2.83613526]
[1646571657188,5.732,87.251,87.21,17.2048]
[1646571657390,5.731,87.253,87.21,17.2048]
[1646571657589,5.731,87.255,87.21,17.2048]
[1646571657790,6.27196908,87.254,87.21,17.2048]
[1646571657993,5.731,87.253,87.21,17.2048]
[1646571658190,5.731,87.255,87.211,2.83613526]
[1646571658590,24.6817,87.256,87.211,8.56713526]
[1646571658792,6.27178755,87.255,87.211,8.56713526]
[1646571658993,24.6817,87.256,87.211,8.56713526]
[1646571659298,24.6817,87.256,87.22,17.2041]
[1646571659693,24.6817,87.256,87.221,2.83613526]
[1646571660092,24.6817,87.256,87.222,56.26946677]
[1646571660497,24.6817,87.256,87.23,17.2024]
[1646571661195,51.43567937,87.271,87.23,17.2024]
[1646571661594,6.27100997,87.27,87.23,17.2024]
[1646571662794,3.12204246,87.272,87.23,17.2024]
[1646571662998,3.12204246,87.274,87.23,17.2024]
[1646571663194,3.12204246,87.273,87.23,17.2024]
[1646571664494,3.12204246,87.272,87.23,17.2024]
[1646571665901,3.12204246,87.273,87.23,17.2024]
[1646571666099,3.12204246,87.272,87.23,17.2024]
[1646571666298,3.12204246,87.274,87.23,17.2024]
[1646571668300,3.12204246,87.274,87.231,2.83613526]
[1646571668901,3.12204246,87.273,87.231,2.83613526]
[1646571669102,6.27100997,87.273,87.231,2.83613526]
[1646571669303,3.12204246,87.274,87.231,2.83613526]
[1646571669503,6.27100997,87.272,87.231,2.83613526]
[1646571669706,3.12204246,87.273,87.231,2.83613526]
[1646571670405,3.12204246,87.273,87.24,17.2001]
[1646571670605,6.27100997,87.282,87.24,17.2001]
[1646571670804,22.7892,87.283,87.241,2.83613526]
[1646571671008,3.12204246,87.294,87.241,26.59894978]
[1646571671306,3.12204246,87.294,87.242,46.95791452]
[1646571671605,3.12204246,87.295,87.25,17.196]
[1646571671806,3.12204246,87.295,87.251,56.9903651]
[1646571672008,3.12204246,87.296,87.251,59.82650036]
[1646571672504,6.26929812,87.303,87.252,2.83613526]
[1646571672505,3.12204246,87.299,87.252,2.83613526]
[1646571672704,6.26929812,87.295,87.252,2.83613526]
[1646571672906,3.12204246,87.3,87.26,17.196]
[1646571673204,6.26929812,87.306,87.26,17.196]
[1646571673405,27.27774246,87.307,87.261,2.83613526]
[1646571673614,6.26813308,87.305,87.261,2.83613526]
[1646571673805,6.26813308,87.306,87.261,2.83613526]
[1646571674411,24.1557,87.307,87.261,2.83613526]
[1646571675207,24.1557,87.307,87.27,17.1926]
[1646571675608,24.1557,87.307,87.271,2.83613526]
[1646571676809,24.1557,87.307,87.281,54.4017134]
[1646571677109,5.727,87.317,87.281,54.4017134]
[1646571677512,6.26782139,87.316,87.281,54.4017134]
[1646571677711,5.727,87.315,87.281,54.4017134]
[1646571678111,6.26782139,87.314,87.281,54.4017134]
[1646571678309,5.727,87.313,87.281,54.4017134]
[1646571678712,5.727,87.317,87.281,54.4017134]
[1646571678911,6.26772084,87.316,87.281,54.4017134]
[1646571679111,5.727,87.315,87.281,54.4017134]
[1646571679317,6.26772084,87.314,87.281,54.4017134]
[1646571679913,6.26772084,87.317,87.281,54.4017134]
[1646571680113,5.727,87.321,87.281,54.4017134]
[1646571680313,6.26774862,87.317,87.281,54.4017134]
[1646571680949,5.727,87.321,87.281,54.4017134]
[1646571681351,6.26759326,87.317,87.281,54.4017134]
[1646571682247,6.26759326,87.317,87.28,17.1923]
[1646571682447,5.727,87.316,87.28,17.1923]
[1646571682647,6.26759326,87.315,87.28,17.1923]
[1646571683048,6.26759326,87.317,87.28,17.1923]
[1646571683748,6.26759326,87.317,87.271,2.83613526]
[1646571683952,114.7,87.316,87.271,2.83613526]
[1646571684148,11.99459326,87.315,87.271,2.83613526]
[1646571684347,5.727,87.315,87.271,2.83613526]
[1646571684552,6.26784655,87.314,87.271,2.83613526]
[1646571684749,6.26784655,87.317,87.271,2.83613526]
[1646571684950,5.727,87.316,87.271,2.83613526]
[1646571685350,6.26784655,87.315,87.271,2.83613526]
[1646571685548,5.727,87.314,87.271,2.83613526]
[1646571685949,5.727,87.317,87.271,2.83613526]
[1646571686150,6.26782445,87.316,87.271,2.83613526]
[1646571686354,5.727,87.315,87.271,2.83613526]
[1646571686554,6.26782445,87.314,87.271,2.83613526]
[1646571686751,5.727,87.313,87.271,2.83613526]
[1646571687152,5.727,87.317,87.271,2.83613526]
[1646571687354,6.26782449,87.316,87.271,2.83613526]
[1646571687553,5.727,87.315,87.271,2.83613526]
[1646571687953,6.26782449,87.314,87.271,2.83613526]
[1646571688556,6.26782449,87.316,87.271,2.83613526]
[1646571689160,9.38986695,87.316,87.271,2.83613526]
[1646571689561,5.727,87.315,87.271,2.83613526]
[1646571689759,6.26782449,87.314,87.271,2.83613526]
[1646571692467,6.26782449,87.317,87.271,2.83613526]
[1646571694963,5.727,87.316,87.271,2.83613526]
[1646571695165,6.26782449,87.315,87.271,2.83613526]
[1646571695664,6.26782449,87.316,87.271,2.83613526]
[1646571695864,5.727,87.315,87.271,2.83613526]
[1646571696265,6.26782449,87.314,87.271,2.83613526]
[1646571696663,6.26782449,87.316,87.271,2.83613526]
[1646571696863,5.727,87.315,87.271,2.83613526]
[1646571697266,6.26782449,87.314,87.271,2.83613526]
[1646571697464,5.727,87.313,87.271,2.83613526]
[1646571697664,6.26782449,87.312,87.271,2.83613526]
[1646571697865,5.727,87.311,87.271,2.83613526]
[1646571698065,6.26782449,87.31,87.271,2.83613526]
[1646571698266,6.26782449,87.31,87.255,24.4317]
[1646571698267,5.728,87.309,87.256,2.83613526]
[1646571698464,29.27802449,87.308,87.256,2.83613526]
[1646571698664,11.99582449,87.307,87.256,2.83613526]
[1646571698864,3.12204246,87.302,87.256,2.83613526]
[1646571699866,3.12204246,87.301,87.256,2.83613526]
[1646571700266,3.12204246,87.301,87.26,17.1962]
[1646571700666,3.12204246,87.301,87.261,2.83613526]
[1646571700867,3.12204246,87.295,87.261,2.83613526]
[1646571701069,3.12204246,87.287,87.244,2.83613526]
[1646571701271,3.12204246,87.286,87.244,2.83613526]
[1646571701468,3.12204246,87.285,87.244,2.83613526]
[1646571701867,49.67675192,87.284,87.244,82.13626079]
[1646571702170,6.26782449,87.283,87.244,82.13626079]
[1646571702367,6.26782449,87.283,87.245,2.83613526]
[1646571702867,9.38986695,87.283,87.246,23.76281452]
[1646571703067,6.26782449,87.283,87.246,23.76281452]
[1646571708469,6.26782449,87.283,87.25,17.1978]
[1646571708676,3.12204246,87.296,87.25,17.1978]
[1646571708867,3.12204246,87.307,87.251,49.54112106]
[1646571709069,3.12204246,87.31,87.251,49.54112106]
[1646571709269,5.728,87.309,87.252,88.89090318]
[1646571709468,52.28800382,87.308,87.252,88.89090318]
[1646571709669,11.99511177,87.307,87.253,49.54112106]
[1646571709873,5.728,87.307,87.253,49.54112106]
[1646571710069,5.728,87.307,87.26,17.1917]
[1646571710470,28.48,87.313,87.261,26.59894978]
[1646571710672,6.26722623,87.312,87.261,26.59894978]
[1646571710873,5.728,87.311,87.262,26.59894978]
[1646571711272,64.06757559,87.31,87.27,17.1933]
[1646571711472,11.99522623,87.309,87.271,51.89960961]
[1646571711973,6.26722623,87.308,87.263,2.83613526]
[1646571712172,5.728,87.307,87.263,2.83613526]
[1646571712378,3.12204246,87.3,87.252,23.072]
[1646571712675,3.12204246,87.296,87.236,2.83613526]
[1646571712873,183.51,87.305,87.236,2.83613526]
[1646571712874,3.12204246,87.295,87.236,2.83613526]
[1646571713074,3.12204246,87.293,87.232,46.7049858]
[1646571713374,3.12204246,87.291,87.232,46.7049858]
[1646571713575,8.85104246,87.29,87.233,23.76281452]
[1646571713774,15.11826869,87.29,87.233,23.76281452]
[1646571713975,6.26722623,87.289,87.233,23.76281452]
[1646571714174,6.26722623,87.289,87.234,22.94217128]
[1646571714674,6.26722623,87.289,87.235,26.59894978]
[1646571715076,6.26722623,87.289,87.236,49.54112106]
[1646571715277,6.26722623,87.292,87.236,49.54112106]
[1646571715476,6.26722623,87.288,87.237,26.59894978]
[1646571715686,6.26722623,87.291,87.237,26.59894978]
[1646571715877,6.26722623,87.292,87.238,26.59894978]
[1646571716077,6.26722623,87.292,87.24,17.1989]
[1646571716576,6.26722623,87.292,87.241,26.59894978]
[1646571716978,6.26722623,87.292,87.242,26.59894978]
[1646571717380,6.26722623,87.292,87.243,26.59894978]
[1646571717778,6.26722623,87.292,87.243,23.76281452]
[1646571718580,5.729,87.291,87.25,17.1974]
[1646571718780,3.12204246,87.309,87.25,17.1974]
[1646571718979,3.12204246,87.309,87.244,23.419]
[1646571718980,3.12204246,87.309,87.251,26.59894978]
[1646571719179,3.12204246,87.313,87.251,26.59894978]
[1646571719382,3.12204246,87.314,87.252,141.29894978]
[1646571719583,3.12204246,87.314,87.26,17.1924]
[1646571719787,3.12204246,87.315,87.261,57.40352775]
[1646571719984,9.38946592,87.316,87.261,57.40352775]
[1646571720183,3.12204246,87.315,87.261,60.23966301]
[1646571720381,3.12204246,87.315,87.262,2.83613526]
[1646571721082,3.12204246,87.314,87.27,17.1925]
[1646571721284,3.12204246,87.315,87.27,17.1925]
[1646571721482,3.12204246,87.315,87.271,2.83613526]
[1646571721683,6.26742346,87.314,87.271,2.83613526]
[1646571722103,23.5038,87.317,87.271,2.83613526]
[1646571722104,9.38946592,87.316,87.271,2.83613526]
[1646571722305,6.26742346,87.313,87.271,2.83613526]
[1646571722508,9.38946592,87.315,87.271,2.83613526]
[1646571722704,6.26742346,87.312,87.271,2.83613526]
[1646571722905,3.12204246,87.315,87.271,2.83613526]
[1646571723106,6.26742346,87.311,87.271,2.83613526]
[1646571723306,5.727,87.31,87.271,2.83613526]
[1646571723510,6.26742346,87.309,87.271,2.83613526]
[1646571723708,6.26742346,87.311,87.271,2.83613526]
[1646571723909,6.26742346,87.313,87.271,2.83613526]
[1646571724110,5.727,87.312,87.271,2.83613526]
[1646571724310,6.26742346,87.311,87.271,2.83613526]
[1646571724509,5.727,87.31,87.271,2.83613526]
[1646571724913,6.26742346,87.309,87.271,2.83613526]
[1646571725311,6.26742346,87.312,87.271,2.83613526]
[1646571725511,5.727,87.311,87.271,2.83613526]
[1646571725711,6.26742346,87.31,87.271,2.83613526]
[1646571725913,6.26742346,87.311,87.271,2.83613526]
[1646571726112,5.727,87.31,87.271,2.83613526]
[1646571726312,6.26742346,87.309,87.271,2.83613526]
[1646571726611,6.26742346,87.31,87.271,2.83613526]
[1646571727011,6.26742346,87.312,87.271,2.83613526]
[1646571727210,5.727,87.311,87.271,2.83613526]
[1646571727411,6.26742346,87.31,87.271,2.83613526]
[1646571727615,3.12204246,87.315,87.271,2.83613526]
[1646571728014,9.38946592,87.316,87.271,2.83613526]
[1646571728212,9.38946592,87.316,87.28,17.1916]
[1646571728414,62.24714102,87.32,87.28,17.1916]
[1646571728810,62.24714102,87.32,87.281,2.83613526]
[1646571729411,24.0205,87.338,87.281,2.83613526]
[1646571729611,6.26582697,87.337,87.281,2.83613526]
[1646571730412,62.07344903,87.336,87.281,2.83613526]
[1646571731214,6.26576692,87.335,87.281,2.83613526]
[1646571731816,6.26576692,87.335,87.29,17.1902]
[1646571732019,6.26576692,87.335,87.291,49.12748765]
[1646571732219,62.07344903,87.336,87.291,49.12748765]
[1646571733718,5.726,87.335,87.291,49.12748765]
[1646571734330,5.726,87.337,87.291,49.12748765]
[1646571735119,60.85784655,87.336,87.291,49.12748765]
[1646571735321,5.726,87.335,87.291,49.12748765]
[1646571735519,5.726,87.335,87.281,2.83613526]
[1646571735719,120.426,87.335,87.281,2.83613526]
[1646571735918,5.726,87.335,87.281,2.83613526]
[1646571736320,60.85784655,87.336,87.281,2.83613526]
[1646571736519,60.85784655,87.336,87.282,49.20568245]
[1646571736720,60.85784655,87.336,87.282,72.96849697]
[1646571737119,60.85784655,87.336,87.29,17.19]
[1646571738322,60.85784655,87.336,87.283,23.76281452]
[1646571738524,6.26593883,87.335,87.283,23.76281452]
[1646571738723,5.726,87.334,87.282,49.20568245]
[1646571739324,6.26612327,87.333,87.281,2.83613526]
[1646571739523,125.01423993,87.332,87.281,2.83613526]
[1646571739724,114.7,87.33,87.272,24.6102]
[1646571739922,114.7,87.328,87.272,24.6102]
[1646571740123,11.99312327,87.327,87.272,24.6102]
[1646571740325,5.727,87.327,87.273,58.17410287]
[1646571740526,23.9046,87.326,87.273,58.17410287]
[1646571741827,23.9046,87.326,87.274,2.83613526]
[1646571742227,23.9046,87.326,87.28,17.1921]
[1646571743230,23.9046,87.326,87.281,2.83613526]
[1646571743432,23.9046,87.326,87.29,17.186]
[1646571743834,23.9046,87.326,87.291,2.83613526]
[1646571744234,61.24055341,87.338,87.291,2.83613526]
[1646571745238,5.726,87.35,87.3,17.1887]
[1646571745443,6.26499399,87.349,87.3,17.1887]
[1646571745644,6.26499399,87.349,87.301,2.83613526]
[1646571745841,3.12204246,87.349,87.301,2.83613526]
[1646571746042,6.26499399,87.348,87.301,2.83613526]
[1646571746244,47.76186443,87.347,87.302,50.04403612]
[1646571746443,54.02685842,87.347,87.302,50.04403612]
[1646571746642,6.26499399,87.346,87.302,52.88017138]
[1646571747843,6.26499399,87.346,87.31,17.1869]
[1646571748042,47.76186443,87.347,87.31,17.1869]
[1646571748458,47.76186443,87.347,87.31,20.02303526]
[1646571748955,6.26465816,87.346,87.31,20.02303526]
[1646571749363,6.26465816,87.35,87.31,20.02303526]
[1646571749558,24.5085,87.351,87.31,43.20919054]
[1646571750766,24.5085,87.351,87.311,5.724]
[1646571751161,24.5085,87.351,87.312,2.83613526]
[1646571751361,24.5085,87.351,87.313,5.724]
[1646571752265,24.5085,87.351,87.32,17.1844]
[1646571755365,24.5085,87.351,87.32,20.02053526]
[1646571755765,24.5085,87.351,87.32,17.1844]
[1646571756167,24.5085,87.351,87.321,2.83613526]
[1646571756568,24.5085,87.351,87.331,62.57028949]
[1646571757366,3.12204246,87.367,87.331,62.57028949]
[1646571757568,3.12204246,87.368,87.331,62.57028949]
[1646571758269,3.12204246,87.367,87.331,62.57028949]
[1646571758470,3.12204246,87.368,87.331,62.57028949]
[1646571758670,3.12204246,87.367,87.331,62.57028949]
[1646571759369,6.26369949,87.37,87.331,62.57028949]
[1646571759370,3.12204246,87.368,87.331,62.57028949]
[1646571761875,3.12204246,87.369,87.331,62.57028949]
[1646571763778,3.12204246,87.367,87.322,5.724]
[1646571764283,6.26369949,87.368,87.322,5.724]
[1646571764685,6.26369949,87.368,87.323,62.43639471]
[1646571764887,6.26369949,87.368,87.324,5.724]
[1646571765081,9.38574195,87.368,87.324,5.724]
[1646571765282,6.26369949,87.368,87.324,5.724]
[1646571766288,9.38574195,87.368,87.324,5.724]
[1646571766683,6.26369949,87.368,87.324,5.724]
[1646571766883,9.38574195,87.368,87.324,5.724]
[1646571767084,9.38574195,87.368,87.33,17.1821]
[1646571767283,6.26369949,87.368,87.33,17.1821]
[1646571768086,9.38574195,87.368,87.33,17.1821]
[1646571768585,9.38574195,87.368,87.324,5.724]
[1646571768789,3.12204246,87.367,87.322,5.724]
[1646571768989,3.12204246,87.365,87.321,2.83613526]
[1646571769187,114.7,87.364,87.322,5.724]
[1646571769388,120.96369949,87.363,87.322,5.724]
[1646571769592,6.26369949,87.362,87.322,5.724]
[1646571769791,6.26369949,87.362,87.321,52.31149221]
[1646571769990,1.56029153,87.343,87.321,52.31149221]
[1646571770192,1.56029153,87.343,87.321,2.83613526]
[1646571770391,1.56029153,87.342,87.321,2.83613526]
[1646571770791,1.56029153,87.343,87.321,2.83613526]
[1646571770991,1.56029153,87.342,87.321,2.83613526]
[1646571771192,49.45620022,87.342,87.321,2.83613526]
[1646571771396,1.56029153,87.328,87.309,2.83613526]
[1646571771592,1.56029153,87.323,87.309,2.83613526]
[1646571771792,30.13711744,87.341,87.23,114.7]
[1646571771793,1.56029153,87.319,87.269,22.33139204]
[1646571771992,1.56029153,87.314,87.27,28.6024]
[1646571772192,55.65867441,87.313,87.271,58.52716956]
[1646571772394,55.65867441,87.313,87.28,17.1918]
[1646571772692,55.65867441,87.313,87.281,5.727]
[1646571772894,1.56029153,87.316,87.28,17.1918]
[1646571773292,1.56029153,87.316,87.28,39.52319204]
[1646571773493,1.56029153,87.314,87.28,39.52319204]
[1646571773692,1.56029153,87.315,87.281,23.18615528]
[1646571774293,1.56029153,87.315,87.281,45.51754732]
[1646571774611,1.56029153,87.314,87.281,45.51754732]
[1646571775213,1.56029153,87.315,87.281,45.51754732]
[1646571775412,1.56029153,87.314,87.281,45.51754732]
[1646571775818,1.56029153,87.314,87.281,22.33139204]
[1646571776416,1.56029153,87.313,87.281,22.33139204]
[1646571776816,1.56029153,87.312,87.281,22.33139204]
[1646571777215,1.56029153,87.315,87.281,22.33139204]
[1646571777416,1.56029153,87.315,87.28,17.1918]
[1646571777718,23.56,87.322,87.28,17.1918]
[1646571777719,1.56029153,87.313,87.28,17.1918]
[1646571777915,1.56029153,87.312,87.28,17.1918]
[1646571778117,1.56029153,87.311,87.28,17.1918]
[1646571778420,1.56029153,87.31,87.269,5.727]
[1646571778616,1.56029153,87.304,87.253,22.33139204]
[1646571778818,1.56029153,87.3,87.255,23.3111]
[1646571779019,1.56029153,87.299,87.255,23.3111]
[1646571779417,1.56029153,87.299,87.256,45.65674421]
[1646571779617,1.56029153,87.298,87.256,45.65674421]
[1646571780018,1.56029153,87.299,87.256,45.65674421]
[1646571780220,1.56029153,87.304,87.256,45.65674421]
[1646571780519,1.56029153,87.298,87.253,22.33139204]
[1646571780818,183.51,87.315,87.25,17.1967]
[1646571780819,1.56029153,87.296,87.25,17.1967]
[1646571781019,1.56029153,87.295,87.25,17.1967]
[1646571781422,51.37986591,87.294,87.251,51.25032532]
[1646571781822,52.94015744,87.294,87.25,17.1967]
[1646571782025,1.56029153,87.289,87.242,23.9829]
[1646571782221,1.56029153,87.288,87.242,23.9829]
[1646571782421,1.56029153,87.285,87.243,45.51754732]
[1646571782621,1.56029153,87.286,87.243,45.51754732]
[1646571782821,1.56029153,87.285,87.244,68.52794734]
[1646571783220,1.56029153,87.286,87.245,22.33139204]
[1646571783421,1.56029153,87.287,87.245,22.33139204]
[1646571783724,5.729,87.291,87.245,22.33139204]
[1646571784122,24.182,87.292,87.25,17.1981]
[1646571784523,1.56029153,87.305,87.251,59.54571595]
[1646571784722,24.4915,87.311,87.251,62.38185121]
[1646571784923,24.4915,87.311,87.252,59.54571595]
[1646571785122,24.4915,87.311,87.252,62.38185121]
[1646571785322,24.4915,87.311,87.26,17.1904]
[1646571785725,24.4915,87.311,87.261,48.35368258]
[1646571785923,5.728,87.314,87.261,48.35368258]
[1646571786223,5.728,87.315,87.262,163.05368258]
[1646571786424,1.56029153,87.331,87.262,178.34395336]
[1646571786623,1.56029153,87.337,87.264,114.7]
[1646571786825,1.56029153,87.336,87.264,114.7]
[1646571787023,48.76389207,87.335,87.265,63.64395336]
[1646571787225,48.76389207,87.335,87.27,17.1933]
[1646571787425,48.76389207,87.335,87.271,58.61061807]
[1646571787624,48.76389207,87.335,87.271,99.06841615]
[1646571788125,1.56029153,87.337,87.29,17.1889]
[1646571788334,1.56029153,87.339,87.29,17.1889]
[1646571788527,24.4915,87.34,87.29,17.1889]
[1646571789127,80.07495476,87.34,87.29,17.1889]
[1646571789929,5.726,87.339,87.29,17.1889]
[1646571790133,1.56029153,87.336,87.29,17.1889]
[1646571790329,7.28629153,87.335,87.29,17.1889]
[1646571790731,1.56029153,87.334,87.273,24.935]
[1646571791032,1.56029153,87.331,87.273,24.935]
[1646571791230,1.56029153,87.321,87.273,24.935]
[1646571791431,1.56029153,87.322,87.273,24.935]
[1646571791629,5.727,87.321,87.273,24.935]
[1646571791832,7.28729153,87.321,87.273,24.935]
[1646571792029,1.56029153,87.321,87.28,17.192]
[1646571792233,1.56029153,87.323,87.28,17.192]
[1646571792433,5.727,87.322,87.28,17.192]
[1646571792630,5.727,87.323,87.28,17.192]
[1646571792830,5.727,87.323,87.281,23.18615528]
[1646571793030,7.28729153,87.324,87.281,23.18615528]
[1646571793430,5.727,87.324,87.281,23.18615528]
[1646571793830,1.56029153,87.325,87.29,17.1894]
[1646571794033,1.56029153,87.334,87.29,17.1894]
[1646571794232,1.56029153,87.342,87.291,61.18182606]
[1646571794443,1.56029153,87.346,87.291,64.01796132]
[1646571794638,25.60879153,87.348,87.292,41.31256132]
[1646571795032,25.60879153,87.348,87.293,38.47642606]
[1646571795435,25.60879153,87.348,87.294,38.47642606]
[1646571795633,25.60879153,87.348,87.301,55.39023642]
[1646571796037,24.0485,87.348,87.301,55.39023642]
[1646571796438,1.56029153,87.347,87.301,55.39023642]
[1646571797045,1.56029153,87.348,87.301,55.39023642]
[1646571797245,1.56029153,87.348,87.31,17.184]
[1646571797645,1.56029153,87.351,87.31,17.184]
[1646571798747,1.56029153,87.352,87.31,17.184]
[1646571798945,1.56029153,87.352,87.311,23.18615528]
[1646571799147,1.56029153,87.364,87.32,17.1782]
[1646571799548,1.56029153,87.365,87.32,17.1782]
[1646571799945,1.56029153,87.366,87.32,17.1782]
[1646571800768,1.56029153,87.366,87.32,34.6798]
[1646571801375,1.56029153,87.373,87.321,156.01256132]
[1646571801569,1.56029153,87.381,87.33,17.1751]
[1646571801769,1.56029153,87.382,87.33,17.1751]
[1646571801970,1.56029153,87.381,87.33,40.36125528]
[1646571802172,1.56029153,87.387,87.331,2.83613526]
[1646571802371,60.96966177,87.386,87.332,49.16724394]
[1646571802774,60.96966177,87.386,87.333,2.83613526]
[1646571802972,62.5299533,87.386,87.333,2.83613526]
[1646571804072,62.5299533,87.386,87.34,17.1764]
[1646571804275,60.96966177,87.386,87.34,17.1764]
[1646571804477,55.24666177,87.386,87.34,17.1764]
[1646571806075,55.24666177,87.386,87.341,2.83613526]
[1646571806276,55.24666177,87.386,87.342,5.723]
[1646571806977,55.24666177,87.386,87.343,2.83613526]
[1646571807183,55.24666177,87.386,87.344,5.723]
[1646571808079,55.24666177,87.386,87.343,2.83613526]
[1646571808280,55.24666177,87.386,87.35,17.1765]
[1646571809485,5.722,87.391,87.35,17.1765]
[1646571809687,1.56029153,87.394,87.351,8.55813526]
[1646571809881,1.56029153,87.399,87.36,17.1734]
[1646571810082,1.56029153,87.399,87.36,24.5534]
[1646571810482,61.17305206,87.398,87.36,24.5534]
[1646571810680,61.17305206,87.398,87.353,5.722]
[1646571810882,1.56029153,87.395,87.353,5.722]
[1646571811082,1.56029153,87.394,87.353,5.722]
[1646571811481,1.56029153,87.394,87.354,2.83613526]
[1646571811682,62.73334359,87.398,87.355,5.722]
[1646571811884,61.17305206,87.398,87.355,5.722]
[1646571812185,61.17305206,87.398,87.355,8.55813526]
[1646571812382,61.17305206,87.398,87.355,2.83613526]
[1646571812683,1.56029153,87.4,87.36,17.1749]
[1646571812883,22.6732,87.404,87.361,5.722]
[1646571813083,22.6732,87.404,87.361,2.83613526]
[1646571813282,22.6732,87.404,87.362,2.83613526]
[1646571813484,1.56029153,87.401,87.363,5.721]
[1646571813683,1.56029153,87.401,87.364,59.79054124]
[1646571813898,1.56029153,87.401,87.365,5.721]
[1646571814083,1.56029153,87.403,87.37,17.1703]
[1646571814484,22.6732,87.404,87.37,17.1703]
[1646571814787,22.6732,87.404,87.37,0.93566714]
[1646571814985,22.6732,87.404,87.253,3.10497677]
[1646571814986,114.7,87.403,87.348,2.83613526]
[1646571815186,1.56029153,87.389,87.348,2.83613526]
[1646571815386,1.56029153,87.389,87.257,17.574]
[1646571815584,1.56029153,87.379,87.258,5.725]
[1646571815787,1.56029153,87.376,87.259,53.85138098]
[1646571816085,56.81980849,87.378,87.26,120.426]
[1646571816286,56.81980849,87.378,87.293,114.7]
[1646571816490,24.6744,87.377,87.295,114.7]
[1646571816688,24.6744,87.377,87.296,5.724]
[1646571816886,1.56029153,87.374,87.295,5.724]
[1646571817087,5.724,87.373,87.295,5.724]
[1646571817289,1.56029153,87.367,87.295,5.724]
[1646571817486,5.724,87.366,87.295,5.724]
[1646571817686,7.28429153,87.37,87.295,5.724]
[1646571817886,7.28429153,87.37,87.31,17.1834]
[1646571818086,1.56029153,87.37,87.311,5.724]
[1646571818287,1.56029153,87.37,87.297,5.724]
[1646571818486,5.724,87.369,87.297,5.724]
[1646571818788,1.56029153,87.368,87.297,5.724]
[1646571818986,68.72,87.361,87.297,5.724]
[1646571819187,119.37067099,87.354,87.293,5.724]
[1646571819388,5.724,87.353,87.292,62.56996222]
[1646571819588,1.56029153,87.348,87.292,62.56996222]
[1646571819792,62.4135504,87.346,87.292,62.56996222]
[1646571819989,5.726,87.345,87.292,62.56996222]
[1646571821696,76.00629153,87.345,87.292,62.56996222]
[1646571821989,1.56029153,87.344,87.281,5.726]
[1646571822191,1.56029153,87.341,87.28,17.1927]
[1646571822392,1.56029153,87.336,87.28,17.1927]
[1646571822589,114.7,87.334,87.28,17.1927]
[1646571822792,5.726,87.333,87.281,50.35393133]
[1646571822989,120.426,87.334,87.281,50.35393133]
[1646571823189,1.56029153,87.331,87.281,50.35393133]
[1646571823391,5.726,87.33,87.281,50.35393133]
[1646571823592,5.727,87.333,87.281,50.35393133]
[1646571824590,5.727,87.333,87.29,17.1904]